[Event "2nd Turkish League 2017"]
[Site "Konya"]
[Date "2017.07.22"]
[Round "8"]
[White "Bayraktar, Armagan"]
[Black "Aktas, Ilker"]
[Result "0-1"]
[ECO "B90"]
[WhiteElo "1889"]
[BlackElo "1905"]
[Annotator "NA"]
[PlyCount "70"]
[EventType "team-tourn"]
[EventCountry "TUR"]
[SourceTitle "playchess.com"]
[Source "ChessBase"]
[SourceQuality "1"]
[TimeControl "5400+30"]

1. e4 {[%emt 0:00:30]} c5 {[%emt 0:01:00]} 2. Nf3 {[%emt 0:00:30]} d6 {[%emt 0:00:00]} 3. d4 {[%emt 0:00:00]} cxd4 {[%emt 0:00:00]} 4. Nxd4 {[%emt 0:00:00]} Nf6 {[%emt 0:00:30]} 5. Nc3 {[%emt 0:00:30]} a6 {[%emt 0:00:00]} 6. Be3 {[%emt 0:02:30]} e5 {[%emt 0:00:00]} 7. Nb3 {[%emt 0:01:30]} Be7 {[%emt 0:00:30]} 8. Qd2 {[%emt 0:00:00]} Be6 {[%emt 0:03:30]} 9. f3 {[%emt 0:01:00]} Nbd7 {[%emt 0:02:30]} 10. O-O-O {[%emt 0:00:30]} O-O {[%emt 0:00:30]} 11. Kb1 {[%emt 0:00:30]} b5 {[%emt 0:01:30]} 12. g4 {[%emt 0:01:30]} b4 {[%emt 0:03:30]} 13. Nd5 {[%emt 0:00:30]} Bxd5 {[%emt 0:00:30]} 14. exd5 {[%emt 0:02:30]} Nb6 {[%emt 0:05:30]} 15. Na5 {[%emt 0:20:30]} Nfxd5 {[%emt 0:04:30]} 16. Nc6 {[%emt 0:05:30]} Qc7 {[%emt 0:01:30]} 17. Nxe7+ {[%emt 0:12:30]} Qxe7 {[%emt 0:00:30]} 18. Bxb6 {[%emt 0:02:30]} Nxb6 {[%emt 0:03:30]} 19. Qxb4 {[%emt 0:05:30]} Rfb8 {[%emt 0:03:30]} 20. Be2 {[%emt 0:03:30]} Nd5 {[%emt 0:04:30]} 21. Qa3 {[%emt 0:03:30]} Nf4 {[%emt 0:02:30]} 22. Bc4 {[%emt 0:02:30]} Rb6 {[%emt 0:01:30]} 23. h4 {[%emt 0:05:30]} Qc7 {[%emt 0:03:30]} 24. Qe3 {[%emt 0:07:30]} Rab8 {[%emt 0:02:30]} 25. Bb3 {[%emt 0:00:30]} a5 {[%emt 0:00:30]} 26. Ka1 {[%emt 0:00:30]} Rb4 {[%emt 0:04:30]} 27. c3 {[%emt 0:01:30]} R4b5 {[%emt 0:02:30]} 28. Rh2 {[%emt 0:01:29]} Qb7 {[%emt 0:18:30]} 29. Rhd2 {[%emt 0:02:13]} Rb6 {[%emt 0:03:30]} 30. Qxe5 {[%emt 0:01:18]} Ne6 {[%emt 0:05:30]} 31. Bxe6 {[%emt 0:03:31]} Rxb2 {[%emt 0:03:30]} 32. Qf5 {[%emt 0:05:12]} fxe6 {[%emt 0:01:24]} 33. Qxe6+ {[%emt 0:00:53]} Kh8 {[%emt 0:00:03]} 34. Qe4 {[%emt 0:02:20]} Qb6 {[%emt 0:02:05]} 35. Qe2 {[%emt 0:01:20]} Rb1+ {[%emt 0:00:30]} 0-1

[Event "2nd Turkish League 2017"]
[Site "Konya"]
[Date "2017.07.22"]
[Round "8"]
[White "Caglar, Sadullah B."]
[Black "Atayman, Evren"]
[Result "0-1"]
[ECO "E61"]
[WhiteElo "1835"]
[BlackElo "1593"]
[Annotator "NA"]
[PlyCount "74"]
[EventType "team-tourn"]
[EventCountry "TUR"]
[SourceTitle "playchess.com"]
[Source "ChessBase"]
[SourceQuality "1"]
[TimeControl "5400+30"]

1. d4 {[%emt 0:00:30]} Nf6 {[%emt 0:01:00]} 2. c4 {[%emt 0:00:30]} c5 {[%emt 0:00:30]} 3. e3 {[%emt 0:00:30]} g6 {[%emt 0:02:30]} 4. Nc3 {[%emt 0:00:30]} Bg7 {[%emt 0:00:30]} 5. Nf3 {[%emt 0:00:30]} O-O {[%emt 0:00:30]} 6. d5 {[%emt 0:03:30]} d6 {[%emt 0:03:30]} 7. h3 {[%emt 0:01:30]} e5 {[%emt 0:04:30]} 8. Bd3 {[%emt 0:02:30]} a6 {[%emt 0:12:30]} 9. Qc2 {[%emt 0:09:30]} b5 {[%emt 0:01:30]} 10. cxb5 {[%emt 0:03:30]} axb5 {[%emt 0:01:30]} 11. Bxb5 {[%emt 0:02:30]} Na6 {[%emt 0:06:30]} 12. Bc4 {[%emt 0:04:30]} Nb4 {[%emt 0:01:30]} 13. Qb1 {[%emt 0:07:30]} e4 {[%emt 0:05:30]} 14. Nd2 {[%emt 0:01:30]} Nd3+ {[%emt 0:03:30]} 15. Bxd3 {[%emt 0:01:30]} exd3 {[%emt 0:00:30]} 16. Qxd3 {[%emt 0:00:30]} Ba6 {[%emt 0:00:00]} 17. Nc4 {[%emt 0:01:30]} Nd7 {[%emt 0:00:00]} 18. O-O {[%emt 0:08:30]} Ne5 {[%emt 0:00:30]} 19. Qc2 {[%emt 0:02:30]} Bxc4 {[%emt 0:01:30]} 20. Rd1 {[%emt 0:00:00]} Ba6 {[%emt 0:07:30]} 21. b3 {[%emt 0:02:00]} c4 {[%emt 0:03:30]} 22. bxc4 {[%emt 0:02:30]} Nxc4 {[%emt 0:00:30]} 23. Rb1 {[%emt 0:00:30]} Qa5 {[%emt 0:01:30]} 24. Rb3 {[%emt 0:02:30]} Rac8 {[%emt 0:00:30]} 25. Rd3 {[%emt 0:03:30]} Rc7 {[%emt 0:02:30]} 26. Rd4 {[%emt 0:04:30]} Rfc8 {[%emt 0:01:30]} 27. Qe4 {[%emt 0:00:30]} Be5 {[%emt 0:03:30]} 28. f4 {[%emt 0:03:30]} f5 {[%emt 0:00:30]} 29. Qf3 {[%emt 0:00:30]} Bxd4 {[%emt 0:00:30]} 30. exd4 {[%emt 0:00:00]} Ne5 {[%emt 0:03:30]} 31. dxe5 {[%emt 0:05:00]} Rxc3 {[%emt 0:00:30]} 32. Be3 {[%emt 0:00:00]} Rxb3 {[%emt 0:00:30]} 33. axb3 {[%emt 0:00:00]} dxe5 {[%emt 0:02:30]} 34. fxe5 {[%emt 0:00:30]} Qa1+ {[%emt 0:00:00]} 35. Kh2 {[%emt 0:00:30]} Qxe5+ {[%emt 0:00:00]} 36. Bf4 {[%emt 0:00:00]} Qe4 {[%emt 0:00:30]} 37. Qg3 {[%emt 0:00:00]} Qxd5 {[%emt 0:02:30]} 0-1

[Event "2nd Turkish League 2017"]
[Site "Konya"]
[Date "2017.07.22"]
[Round "8"]
[White "Altunbay, Onder"]
[Black "Yakar, Ozan Tuna"]
[Result "1/2-1/2"]
[ECO "B22"]
[WhiteElo "1830"]
[BlackElo "1718"]
[Annotator "NA"]
[PlyCount "71"]
[EventType "team-tourn"]
[EventCountry "TUR"]
[SourceTitle "playchess.com"]
[Source "ChessBase"]
[SourceQuality "1"]
[TimeControl "5400+30"]

1. e4 {[%emt 0:00:30]} c5 {[%emt 0:08:00]} 2. Nf3 {[%emt 0:00:30]} e6 {[%emt 0:02:30]} 3. c3 {[%emt 0:01:30]} d5 {[%emt 0:02:30]} 4. exd5 {[%emt 0:01:30]} Qxd5 {[%emt 0:00:30]} 5. d4 {[%emt 0:03:30]} Nf6 {[%emt 0:00:30]} 6. Be2 {[%emt 0:02:30]} Be7 {[%emt 0:07:30]} 7. O-O {[%emt 0:03:30]} O-O {[%emt 0:01:30]} 8. Be3 {[%emt 0:01:30]} cxd4 {[%emt 0:00:30]} 9. cxd4 {[%emt 0:05:30]} Nc6 {[%emt 0:03:30]} 10. Nc3 {[%emt 0:02:30]} Qd6 {[%emt 0:01:30]} 11. Qd2 {[%emt 0:08:30]} Rd8 {[%emt 0:24:30]} 12. Rfd1 {[%emt 0:09:30]} b6 {[%emt 0:19:30]} 13. Bf4 {[%emt 0:24:30]} Qd7 {[%emt 0:12:14]} 14. Ne5 {[%emt 0:05:30]} Nxe5 {[%emt 0:03:42]} 15. dxe5 {[%emt 0:02:30]} Qxd2 {[%emt 0:00:07]} 16. Rxd2 {[%emt 0:00:30]} Rxd2 {[%emt 0:00:23]} 17. exf6 {[%emt 0:09:51]} Rxe2 {[%emt 0:01:23]} 18. fxe7 {[%emt 0:01:00]} Ba6 {[%emt 0:01:33]} 19. Rd1 {[%emt 0:01:21]} Re8 {[%emt 0:00:04]} 20. Nxe2 {[%emt 0:00:50]} Bxe2 {[%emt 0:00:07]} 21. Rd7 {[%emt 0:00:00]} a6 {[%emt 0:02:22]} 22. Rb7 {[%emt 0:01:40]} f6 {[%emt 0:01:44]} 23. Bd6 {[%emt 0:00:33]} Kf7 {[%emt 0:04:31]} 24. Rxb6 {[%emt 0:00:36]} Rc8 {[%emt 0:00:24]} 25. h3 {[%emt 0:00:36]} Bb5 {[%emt 0:00:33]} 26. b3 {[%emt 0:02:36]} Rc1+ {[%emt 0:01:09]} 27. Kh2 {[%emt 0:00:30]} Rc6 {[%emt 0:00:00]} 28. Rxc6 {[%emt 0:00:27]} Bxc6 {[%emt 0:00:02]} 29. f4 {[%emt 0:01:06]} Ke8 {[%emt 0:00:22]} 30. Kg3 {[%emt 0:00:56]} Kd7 {[%emt 0:00:49]} 31. Bc5 {[%emt 0:00:06]} Kc7 {[%emt 0:00:52]} 32. Kf2 {[%emt 0:01:51]} Be8 {[%emt 0:00:08]} 33. Ke3 {[%emt 0:01:31]} Kc6 {[%emt 0:00:30]} 34. b4 {[%emt 0:00:00]} Kd5 {[%emt 0:00:03]} 35. Bb6 {[%emt 0:01:54]} Bb5 {[%emt 0:00:49]} 36. g3 {[%emt 0:02:48]} 1/2-1/2

[Event "2nd Turkish League 2017"]
[Site "Konya"]
[Date "2017.07.22"]
[Round "8"]
[White "Kutlu, Sedat"]
[Black "Okay, Ilkin Ege"]
[Result "0-1"]
[ECO "B15"]
[WhiteElo "1824"]
[BlackElo "1973"]
[Annotator "NA"]
[PlyCount "100"]
[EventType "team-tourn"]
[EventCountry "TUR"]
[SourceTitle "playchess.com"]
[Source "ChessBase"]
[SourceQuality "1"]
[TimeControl "5400+30"]

1. e4 {[%emt 0:00:30]} c6 {[%emt 0:01:00]} 2. Nc3 {[%emt 0:00:00]} d5 {[%emt 0:00:00]} 3. Nf3 {[%emt 0:00:00]} g6 {[%emt 0:00:00]} 4. d4 {[%emt 0:04:30]} Bg7 {[%emt 0:00:30]} 5. exd5 {[%emt 0:07:30]} cxd5 {[%emt 0:00:00]} 6. Bf4 {[%emt 0:00:30]} Nf6 {[%emt 0:02:00]} 7. Bb5+ {[%emt 0:01:30]} Bd7 {[%emt 0:03:30]} 8. Qd3 {[%emt 0:02:30]} O-O {[%emt 0:01:30]} 9. Bxd7 {[%emt 0:03:30]} Nbxd7 {[%emt 0:04:30]} 10. O-O-O {[%emt 0:03:30]} Rc8 {[%emt 0:27:30]} 11. Kb1 {[%emt 0:04:30]} b5 {[%emt 0:21:30]} 12. Nd2 {[%emt 0:17:30]} b4 {[%emt 0:02:30]} 13. Ne2 {[%emt 0:05:30]} Rc6 {[%emt 0:00:30]} 14. f3 {[%emt 0:02:30]} Qa5 {[%emt 0:03:30]} 15. Nb3 {[%emt 0:00:30]} Qb6 {[%emt 0:00:30]} 16. g4 {[%emt 0:00:30]} Rfc8 {[%emt 0:01:30]} 17. Rd2 {[%emt 0:03:30]} a5 {[%emt 0:00:30]} 18. h4 {[%emt 0:00:00]} a4 {[%emt 0:01:30]} 19. Nbc1 {[%emt 0:00:00]} Rc3 {[%emt 0:00:30]} 20. bxc3 {[%emt 0:11:30]} bxc3+ {[%emt 0:00:30]} 21. Nb3 {[%emt 0:00:00]} cxd2 {[%emt 0:01:30]} 22. h5 {[%emt 0:02:00]} axb3 {[%emt 0:02:30]} 23. cxb3 {[%emt 0:01:30]} gxh5 {[%emt 0:04:30]} 24. Qxd2 {[%emt 0:06:30]} hxg4 {[%emt 0:02:30]} 25. Bh6 {[%emt 0:02:41]} Nh5 {[%emt 0:02:53]} 26. Be3 {[%emt 0:01:39]} gxf3 {[%emt 0:00:52]} 27. Nc3 {[%emt 0:00:34]} Qg6+ {[%emt 0:02:14]} 28. Kb2 {[%emt 0:00:18]} Ndf6 {[%emt 0:05:32]} 29. b4 {[%emt 0:00:57]} Ng3 {[%emt 0:03:26]} 30. Rg1 {[%emt 0:01:11]} Nfe4 {[%emt 0:00:12]} 31. Nxe4 {[%emt 0:02:11]} Nxe4 {[%emt 0:00:09]} 32. Qd1 {[%emt 0:02:06]} Qb6 {[%emt 0:01:32]} 33. a3 {[%emt 0:00:31]} Rc3 {[%emt 0:01:24]} 34. Qa4 {[%emt 0:01:20]} Rc8 {[%emt 0:00:55]} 35. Qd7 {[%emt 0:00:38]} Qc7 {[%emt 0:00:41]} 36. Qxc7 {[%emt 0:04:28]} Rxc7 {[%emt 0:00:31]} 37. Bh6 {[%emt 0:00:08]} f2 {[%emt 0:02:14]} 38. Rxg7+ {[%emt 0:01:32]} Kf8 {[%emt 0:00:02]} 39. Rg4+ {[%emt 0:03:30]} Ke8 {[%emt 0:00:30]} 40. Rf4 {[%emt 0:00:00]} Rc6 {[%emt 0:00:37]} 41. Bg7 {[%emt 0:02:28]} Rg6 {[%emt 0:00:58]} 42. Be5 {[%emt 0:00:54]} f6 {[%emt 0:00:02]} 43. Bb8 {[%emt 0:01:55]} Kd7 {[%emt 0:00:01]} 44. b5 {[%emt 0:00:15]} Kc8 {[%emt 0:01:31]} 45. Ba7 {[%emt 0:00:10]} Rg1 {[%emt 0:00:03]} 46. a4 {[%emt 0:00:57]} f1=Q {[%emt 0:00:23]} 47. Rxf1 {[%emt 0:00:04]} Rxf1 {[%emt 0:00:34]} 48. a5 {[%emt 0:00:28]} Nd6 {[%emt 0:00:00]} 49. Bc5 {[%emt 0:00:35]} Nxb5 {[%emt 0:00:12]} 50. Bxe7 {[%emt 0:00:12]} Kb7 {[%emt 0:00:22]} 0-1

[Event "2nd Turkish League 2017"]
[Site "Konya"]
[Date "2017.07.22"]
[Round "8"]
[White "Guney, Gamze Nur"]
[Black "Bayrak, Asli"]
[Result "1-0"]
[ECO "D13"]
[WhiteElo "1776"]
[BlackElo "2056"]
[Annotator "NA"]
[PlyCount "115"]
[EventType "team-tourn"]
[EventCountry "TUR"]
[SourceTitle "playchess.com"]
[Source "ChessBase"]
[SourceQuality "1"]
[TimeControl "5400+30"]

1. d4 {[%emt 0:00:30]} d5 {[%emt 0:01:00]} 2. c4 {[%emt 0:00:00]} c6 {[%emt 0:00:30]} 3. Nf3 {[%emt 0:00:00]} Nf6 {[%emt 0:00:00]} 4. cxd5 {[%emt 0:01:30]} cxd5 {[%emt 0:00:00]} 5. Nc3 {[%emt 0:00:30]} Nc6 {[%emt 0:00:30]} 6. a3 {[%emt 0:01:30]} e6 {[%emt 0:07:30]} 7. Bg5 {[%emt 0:05:30]} Be7 {[%emt 0:04:30]} 8. e3 {[%emt 0:01:30]} Bd7 {[%emt 0:15:30]} 9. Bd3 {[%emt 0:01:30]} Rc8 {[%emt 0:00:30]} 10. h3 {[%emt 0:02:30]} Na5 {[%emt 0:06:30]} 11. O-O {[%emt 0:01:30]} Nc4 {[%emt 0:03:30]} 12. Qe2 {[%emt 0:01:30]} b5 {[%emt 0:06:30]} 13. Rfc1 {[%emt 0:01:30]} a6 {[%emt 0:03:30]} 14. Bxf6 {[%emt 0:18:30]} Bxf6 {[%emt 0:01:30]} 15. e4 {[%emt 0:02:30]} dxe4 {[%emt 0:07:30]} 16. Nxe4 {[%emt 0:00:30]} O-O {[%emt 0:00:30]} 17. Nxf6+ {[%emt 0:07:30]} Qxf6 {[%emt 0:00:30]} 18. Bxc4 {[%emt 0:01:30]} bxc4 {[%emt 0:02:30]} 19. Ne5 {[%emt 0:01:30]} Rfd8 {[%emt 0:01:30]} 20. a4 {[%emt 0:03:30]} Qf4 {[%emt 0:09:30]} 21. Rxc4 {[%emt 0:14:30]} Rxc4 {[%emt 0:03:30]} 22. Qxc4 {[%emt 0:02:30]} Rc8 {[%emt 0:08:35]} 23. Qxa6 {[%emt 0:00:30]} Qxd4 {[%emt 0:02:27]} 24. Nxd7 {[%emt 0:05:30]} Qxd7 {[%emt 0:00:02]} 25. Qe2 {[%emt 0:00:30]} h6 {[%emt 0:07:14]} 26. a5 {[%emt 0:01:30]} Qd4 {[%emt 0:01:15]} 27. a6 {[%emt 0:05:24]} Rc7 {[%emt 0:00:04]} 28. Rd1 {[%emt 0:01:48]} Qb6 {[%emt 0:01:09]} 29. Qd3 {[%emt 0:00:50]} Rc8 {[%emt 0:03:23]} 30. b3 {[%emt 0:02:32]} Ra8 {[%emt 0:00:18]} 31. Ra1 {[%emt 0:00:40]} Kf8 {[%emt 0:01:55]} 32. Qc4 {[%emt 0:02:38]} Ra7 {[%emt 0:01:50]} 33. Ra4 {[%emt 0:01:09]} Ke7 {[%emt 0:00:44]} 34. Qh4+ {[%emt 0:01:17]} f6 {[%emt 0:00:15]} 35. Qc4 {[%emt 0:01:14]} e5 {[%emt 0:00:29]} 36. b4 {[%emt 0:02:32]} Rc7 {[%emt 0:00:30]} 37. Qg4 {[%emt 0:01:13]} Rc1+ {[%emt 0:00:21]} 38. Kh2 {[%emt 0:00:00]} Qxf2 {[%emt 0:00:26]} 39. Qxg7+ {[%emt 0:02:26]} Ke6 {[%emt 0:00:19]} 40. Qg8+ {[%emt 0:02:24]} Ke7 {[%emt 0:00:04]} 41. Qg7+ {[%emt 0:01:25]} Ke6 {[%emt 0:00:01]} 42. Qg4+ {[%emt 0:00:29]} Ke7 {[%emt 0:00:02]} 43. Qe4 {[%emt 0:00:43]} Qg1+ {[%emt 0:02:11]} 44. Kg3 {[%emt 0:00:30]} Rc3+ {[%emt 0:00:00]} 45. Kh4 {[%emt 0:00:01]} Qf2+ {[%emt 0:00:49]} 46. Kh5 {[%emt 0:01:04]} Rc4 {[%emt 0:01:02]} 47. Qh7+ {[%emt 0:01:24]} Kd6 {[%emt 0:00:26]} 48. g4 {[%emt 0:00:52]} Qe3 {[%emt 0:00:33]} 49. h4 {[%emt 0:00:53]} Qf4 {[%emt 0:00:57]} 50. Qf5 {[%emt 0:00:46]} Qg3 {[%emt 0:00:33]} 51. Qxf6+ {[%emt 0:00:35]} Kd5 {[%emt 0:00:19]} 52. Ra5+ {[%emt 0:00:00]} Kd4 {[%emt 0:00:44]} 53. Qd6+ {[%emt 0:00:10]} Ke4 {[%emt 0:00:04]} 54. Qg6+ {[%emt 0:00:41]} Kf3 {[%emt 0:00:20]} 55. Qd3+ {[%emt 0:00:12]} Kg2 {[%emt 0:00:09]} 56. Qxg3+ {[%emt 0:00:20]} Kxg3 {[%emt 0:00:30]} 57. Ra3+ {[%emt 0:00:00]} Kf4 {[%emt 0:00:04]} 58. a7 {[%emt 0:00:00]} 1-0

[Event "2nd Turkish League 2017"]
[Site "Konya"]
[Date "2017.07.22"]
[Round "8"]
[White "Simsek, Meltem"]
[Black "Boy, Melike"]
[Result "1-0"]
[ECO "A16"]
[WhiteElo "1752"]
[BlackElo "1265"]
[Annotator "NA"]
[PlyCount "71"]
[EventType "team-tourn"]
[EventCountry "TUR"]
[SourceTitle "playchess.com"]
[Source "ChessBase"]
[SourceQuality "1"]
[TimeControl "5400+30"]

1. c4 {[%emt 0:00:30]} Nf6 {[%emt 0:01:00]} 2. Nc3 {[%emt 0:00:30]} g6 {[%emt 0:00:30]} 3. g3 {[%emt 0:00:30]} Bg7 {[%emt 0:00:00]} 4. Bg2 {[%emt 0:00:00]} O-O {[%emt 0:00:00]} 5. e3 {[%emt 0:00:00]} d6 {[%emt 0:00:30]} 6. Nge2 {[%emt 0:00:00]} Nbd7 {[%emt 0:01:30]} 7. O-O {[%emt 0:00:00]} c6 {[%emt 0:00:30]} 8. Rb1 {[%emt 0:00:00]} Qc7 {[%emt 0:01:30]} 9. b3 {[%emt 0:02:00]} Re8 {[%emt 0:02:30]} 10. d4 {[%emt 0:08:30]} e5 {[%emt 0:06:30]} 11. Bb2 {[%emt 0:02:30]} Kh8 {[%emt 0:21:30]} 12. h3 {[%emt 0:12:30]} Ng8 {[%emt 0:01:30]} 13. dxe5 {[%emt 0:04:30]} dxe5 {[%emt 0:01:30]} 14. Ne4 {[%emt 0:02:30]} Bf8 {[%emt 0:10:30]} 15. Qd2 {[%emt 0:13:30]} Nc5 {[%emt 0:05:30]} 16. Nxc5 {[%emt 0:01:30]} Bxc5 {[%emt 0:01:30]} 17. b4 {[%emt 0:00:00]} Bf8 {[%emt 0:01:30]} 18. f4 {[%emt 0:00:00]} Bg7 {[%emt 0:00:30]} 19. fxe5 {[%emt 0:09:30]} Bxe5 {[%emt 0:03:30]} 20. Bxe5+ {[%emt 0:00:00]} Qxe5 {[%emt 0:06:30]} 21. Qd4 {[%emt 0:03:00]} Qxd4 {[%emt 0:03:30]} 22. Nxd4 {[%emt 0:00:00]} Rxe3 {[%emt 0:00:30]} 23. Rxf7 {[%emt 0:00:00]} Rxg3 {[%emt 0:01:30]} 24. Nf3 {[%emt 0:03:30]} Bxh3 {[%emt 0:01:30]} 25. Kh2 {[%emt 0:00:00]} Be6 {[%emt 0:00:30]} 26. Rxb7 {[%emt 0:01:00]} Rg4 {[%emt 0:04:30]} 27. Bh3 {[%emt 0:00:30]} Re4 {[%emt 0:01:30]} 28. Ng5 {[%emt 0:00:30]} Re2+ {[%emt 0:01:30]} 29. Kg3 {[%emt 0:00:30]} Nf6 {[%emt 0:00:30]} 30. Bxe6 {[%emt 0:01:30]} Ne4+ {[%emt 0:02:27]} 31. Nxe4 {[%emt 0:04:30]} Rxe4 {[%emt 0:00:08]} 32. Bf7 {[%emt 0:01:30]} h5 {[%emt 0:02:38]} 33. Rd1 {[%emt 0:00:30]} Rf8 {[%emt 0:03:28]} 34. Rdd7 {[%emt 0:02:30]} Rg4+ {[%emt 0:00:51]} 35. Kf3 {[%emt 0:04:30]} g5 {[%emt 0:02:13]} 36. Ke3 {[%emt 0:00:30]} 1-0

[Event "2nd Turkish League 2017"]
[Site "Konya"]
[Date "2017.07.22"]
[Round "8"]
[White "Koc, Serkan"]
[Black "Yasin, Hur"]
[Result "0-1"]
[ECO "B27"]
[WhiteElo "1719"]
[BlackElo "2022"]
[Annotator "NA"]
[PlyCount "26"]
[EventType "team-tourn"]
[EventCountry "TUR"]
[SourceTitle "playchess.com"]
[Source "ChessBase"]
[SourceQuality "1"]
[TimeControl "5400+30"]

1. e4 {[%emt 0:00:30]} c5 {[%emt 0:01:00]} 2. Nf3 {[%emt 0:00:00]} g6 {[%emt 0:00:30]} 3. c3 {[%emt 0:05:00]} d5 {[%emt 0:03:30]} 4. exd5 {[%emt 0:00:30]} Qxd5 {[%emt 0:00:30]} 5. Na3 {[%emt 0:08:30]} Bg7 {[%emt 0:00:30]} 6. Bc4 {[%emt 0:00:30]} Qe4+ {[%emt 0:07:30]} 7. Be2 {[%emt 0:04:30]} a6 {[%emt 0:03:30]} 8. O-O {[%emt 0:05:30]} b5 {[%emt 0:09:30]} 9. Re1 {[%emt 0:02:30]} Qc6 {[%emt 0:01:30]} 10. d4 {[%emt 0:05:30]} Bb7 {[%emt 0:00:30]} 11. dxc5 {[%emt 0:02:30]} Nd7 {[%emt 0:00:30]} 12. b4 {[%emt 0:00:30]} Bxc3 {[%emt 0:02:30]} 13. Nd4 {[%emt 0:03:30]} Qxg2# {[%emt 0:00:30]} 0-1

[Event "2nd Turkish League 2017"]
[Site "Konya"]
[Date "2017.07.22"]
[Round "8"]
[White "Koc, Dogan Mehmet"]
[Black "Acar, Utku Cengiz"]
[Result "1-0"]
[ECO "E88"]
[WhiteElo "1712"]
[BlackElo "1863"]
[Annotator "NA"]
[PlyCount "137"]
[EventType "team-tourn"]
[EventCountry "TUR"]
[SourceTitle "playchess.com"]
[Source "ChessBase"]
[SourceQuality "1"]
[TimeControl "5400+30"]

1. d4 {[%emt 0:00:30]} Nf6 {[%emt 0:01:00]} 2. c4 {[%emt 0:00:30]} g6 {[%emt 0:00:30]} 3. Nc3 {[%emt 0:00:30]} Bg7 {[%emt 0:00:30]} 4. e4 {[%emt 0:00:00]} d6 {[%emt 0:00:30]} 5. f3 {[%emt 0:01:00]} O-O {[%emt 0:07:30]} 6. Be3 {[%emt 0:01:30]} e5 {[%emt 0:03:30]} 7. d5 {[%emt 0:00:30]} c6 {[%emt 0:02:30]} 8. Bd3 {[%emt 0:04:30]} Nfd7 {[%emt 0:06:30]} 9. g4 {[%emt 0:05:30]} Bh6 {[%emt 0:10:30]} 10. Bf2 {[%emt 0:10:30]} Nc5 {[%emt 0:10:30]} 11. h4 {[%emt 0:10:30]} Qb6 {[%emt 0:06:30]} 12. Rb1 {[%emt 0:10:30]} a5 {[%emt 0:06:30]} 13. h5 {[%emt 0:06:30]} Bf4 {[%emt 0:12:30]} 14. Nge2 {[%emt 0:05:30]} Nbd7 {[%emt 0:02:30]} 15. Bh4 {[%emt 0:09:30]} f6 {[%emt 0:08:16]} 16. hxg6 {[%emt 0:05:30]} hxg6 {[%emt 0:00:07]} 17. Bf2 {[%emt 0:08:42]} Kg7 {[%emt 0:03:58]} 18. Kf1 {[%emt 0:02:49]} Qd8 {[%emt 0:05:36]} 19. Kg2 {[%emt 0:02:39]} Rh8 {[%emt 0:02:21]} 20. Qc2 {[%emt 0:00:42]} Rxh1 {[%emt 0:01:52]} 21. Rxh1 {[%emt 0:00:07]} Bg5 {[%emt 0:01:03]} 22. Qd1 {[%emt 0:02:36]} Nf8 {[%emt 0:02:13]} 23. Ng3 {[%emt 0:02:37]} Nh7 {[%emt 0:01:10]} 24. Bc2 {[%emt 0:00:52]} Qf8 {[%emt 0:02:26]} 25. Qg1 {[%emt 0:03:58]} Bd7 {[%emt 0:00:36]} 26. Bxc5 {[%emt 0:02:25]} dxc5 {[%emt 0:00:04]} 27. Na4 {[%emt 0:00:13]} cxd5 {[%emt 0:02:10]} 28. Nxc5 {[%emt 0:01:43]} dxe4 {[%emt 0:00:33]} 29. Ngxe4 {[%emt 0:00:49]} Rd8 {[%emt 0:00:24]} 30. Qh2 {[%emt 0:00:48]} Qg8 {[%emt 0:00:00]} 31. Bb3 {[%emt 0:00:43]} Bf4 {[%emt 0:01:05]} 32. Qxh7+ {[%emt 0:00:52]} Qxh7 {[%emt 0:00:30]} 33. Rxh7+ {[%emt 0:00:30]} Kxh7 {[%emt 0:00:30]} 34. Nxf6+ {[%emt 0:00:00]} Kg7 {[%emt 0:00:00]} 35. Nfxd7 {[%emt 0:00:28]} Kf7 {[%emt 0:00:00]} 36. Ba4 {[%emt 0:00:42]} Ke7 {[%emt 0:00:26]} 37. Nxb7 {[%emt 0:00:26]} Rh8 {[%emt 0:00:52]} 38. Nxa5 {[%emt 0:00:35]} Rh2+ {[%emt 0:00:06]} 39. Kf1 {[%emt 0:00:23]} Rxb2 {[%emt 0:00:00]} 40. Nc5 {[%emt 0:00:23]} Rxa2 {[%emt 0:00:53]} 41. Nc6+ {[%emt 0:00:22]} Kd6 {[%emt 0:00:41]} 42. Ne4+ {[%emt 0:00:37]} Kc7 {[%emt 0:00:17]} 43. Bb5 {[%emt 0:00:13]} Kb6 {[%emt 0:00:15]} 44. Ne7 {[%emt 0:00:00]} Ra3 {[%emt 0:01:38]} 45. Nd5+ {[%emt 0:01:04]} Ka5 {[%emt 0:00:18]} 46. Nec3 {[%emt 0:00:46]} Rb3 {[%emt 0:00:40]} 47. Ke2 {[%emt 0:00:47]} Rb2+ {[%emt 0:00:07]} 48. Kd1 {[%emt 0:00:10]} Rd2+ {[%emt 0:00:42]} 49. Ke1 {[%emt 0:00:09]} Rd3 {[%emt 0:00:31]} 50. Nxf4 {[%emt 0:01:04]} exf4 {[%emt 0:00:26]} 51. Ne4 {[%emt 0:00:39]} Rxf3 {[%emt 0:00:40]} 52. Nf6 {[%emt 0:00:10]} Kb4 {[%emt 0:00:33]} 53. Ke2 {[%emt 0:00:47]} Re3+ {[%emt 0:00:30]} 54. Kf2 {[%emt 0:00:00]} Kc5 {[%emt 0:00:00]} 55. Kg2 {[%emt 0:00:54]} g5 {[%emt 0:00:02]} 56. Kf2 {[%emt 0:00:09]} Ra3 {[%emt 0:00:47]} 57. Ne4+ {[%emt 0:00:15]} Kb6 {[%emt 0:00:40]} 58. Nxg5 {[%emt 0:00:40]} Rg3 {[%emt 0:00:06]} 59. Bd7 {[%emt 0:00:00]} Kc7 {[%emt 0:01:01]} 60. Be6 {[%emt 0:00:21]} Re3 {[%emt 0:00:00]} 61. Bd5 {[%emt 0:00:48]} Kd6 {[%emt 0:00:13]} 62. Ne4+ {[%emt 0:00:51]} Ke5 {[%emt 0:00:18]} 63. Nd2 {[%emt 0:01:00]} Rg3 {[%emt 0:00:33]} 64. Nf3+ {[%emt 0:00:45]} Kd6 {[%emt 0:00:20]} 65. g5 {[%emt 0:00:00]} Kc5 {[%emt 0:00:34]} 66. Ke2 {[%emt 0:00:08]} Rh3 {[%emt 0:01:27]} 67. Kd3 {[%emt 0:00:10]} Rh8 {[%emt 0:00:18]} 68. Ke4 {[%emt 0:00:30]} Rf8 {[%emt 0:00:00]} 69. g6 {[%emt 0:00:12]} 1-0